Cogmind - Beta 16.1 @@@ ROGUE MODE // 2026.02.17 @ 21:17:16 Player: Megaknight51 Result: Self-destructed Performance ------------- Evolutions (1) 500 Regions Visited (2) 400 Robots Destroyed (26) 130 Value Destroyed (548) 548 Prototype IDs (0) 0 Alien Tech Used (0) 0 Bonus (0) 0 TOTAL SCORE: 1578 Bonus ------- None Cogmind --------- Core Integrity 375/400 Matter 7/300 Energy 100/100 System Corruption 0% Temperature Cool (0) Movement Core (500) Ox9 Location -9/Materials Parts ------- > --- POWER (1) -------- (None) > --- PROPULSION (2) --- (None) > --- UTILITY (2) ------ Large Storage Unit > --- WEAPON (4) ------- Rocket Launcher Rocket Launcher > --- INVENTORY (15) --- Light Ion Engine Wheel Compact Wheel Structural Scanner Improved Terrain Scanner Seismic Detector Shield Generator Shield Generator Small Laser Assault Rifle Light Assault Rifle Datajack Flail Peak State ------------ > --- POWER ------------ Ion Engine > --- PROPULSION ------- Wheel Compact Wheel > --- UTILITY ---------- Large Storage Unit Seismic Detector > --- WEAPON ----------- Rocket Launcher Rocket Launcher Rocket Launcher Rocket Launcher > --- INVENTORY -------- Light Ion Engine Wheel Compact Wheel Structural Scanner Improved Terrain Scanner Seismic Detector Shield Generator Shield Generator Small Laser Assault Rifle Light Assault Rifle Flail [Rating: 14] Favorites ----------- Power Ion Engine Engine Ion Engine Propulsion Wheel Wheel Wheel Utility Seismic Detector Device Seismic Detector Storage Small Storage Unit Weapon Rocket Launcher Ballistic Gun Assault Rifle Launcher Rocket Launcher Build | -11 -10 -9 ------- Run | Yrd Mat Mat Slots Evolved 2 | . . 2 Power . | . . . Propulsion . | . . . Utility . | . . . Weapon 2 | . . 2 Parts Attached 13 | 8 3 2 Power 2 | 2 . . Engine 2 | 2 . . Core . | . . . Reactor . | . . . Propulsion 2 | 2 . . Treads . | . . . Leg . | . . . Wheel 2 | 2 . . Hover . | . . . Flight . | . . . Utility 3 | 2 1 . Device 1 | 1 . . Storage 2 | 1 1 . Processor . | . . . Hackware . | . . . Protection . | . . . Artifact . | . . . Weapon 6 | 2 2 2 Energy Gun . | . . . Energy Cannon . | . . . Ballistic Gun 2 | 2 . . Ballistic Cannon . | . . . Launcher 4 | . 2 2 Special Weapon . | . . . Impact Weapon . | . . . Slashing Weapon . | . . . Piercing Weapon . | . . . Special Melee Weapon . | . . . Unidentified Prototypes . | . . . Parts Lost 2 | . . 2 Power 1 | . . 1 Propulsion . | . . . Utility . | . . . Weapon 1 | . . 1 Highest Loss Streak 1 | . . 1 To Critical Strikes . | . . . Average Backups 9 | 3 9 12 Power . | . 1 1 Propulsion 1 | 1 2 2 Utility 3 | 1 3 5 Weapon 2 | 1 2 4 Tool/Special . | . . . Unused Backups 14 | 1 3 10 Power . | . . . Propulsion 3 | 1 . 2 Utility 7 | . 2 5 Weapon 3 | . 1 2 Tool/Special 1 | . . 1 Average Slot Usage (%) 93 | . 100 78 Engine 10 | . 14 3 Wheel 24 | . 28 17 Device 12 | . 14 9 Storage 13 | . 14 11 Ballistic Gun 16 | . 24 . Launcher 14 | . 3 37 Peak Build Rating 14 | 8 11 14 Average Rating 9 | 6 8 11 On Entrance 6 | . 8 11 Avg Prop Armor Cover (%) . | . . . Naked Turns . | . . . Heaviest Build 42 | 14 34 42 Greatest Support 26 | 26 26 26 Greatest Overweight (x) 10 | . 1 10 Average Overweight (x) . | . . 1 Largest Inventory Capacity 15 | 8 15 15 Average Capacity 10 | 7 9 15 Most Carried 14 | 8 14 13 Average Carried 9 | 3 8 12 Final Capacity 15 | 8 15 15 Final Carried 14 | 8 14 13 Class Distribution -------------------- 79% | Mutant 12% | Gunner 7% | Bomber Dominant Class ---------------- Mutant | -10/Materials Gunner | -9/Materials Resources | -11 -10 -9 ----------- Run | Yrd Mat Mat Matter Collected 520 | 261 176 83 Remotely . | . . . Salvage Created 610 | 87 359 164 Parts 48 | 10 23 15 Haulers Intercepted 1 | . 1 . Recyclers Shooed . | . . . Parts Field Recycled . | . . . Retrieved Matter . | . . . Parts Self-Destructed . | . . . Prevented . | . . . Parts Restored . | . . . Kills | -11 -10 -9 ------- Run | Yrd Mat Mat Combat Hostiles Destroyed 18 | . 11 7 Guns 9 | . 9 . AOE 9 | . 2 7 Classes Destroyed 7 | 2 3 2 Worker 1 | . . 1 Tunneler 2 | 2 . . Hauler 1 | . 1 . Recycler 2 | 1 . 1 Operator 2 | . . 2 Swarmer 7 | . 3 4 Grunt 11 | . 8 3 Best Kill Streak 5 | 3 4 5 Combat Bots Only 4 | . 4 4 Max Kills in Single Turn 5 | 1 1 5 Gunslinging . | . . . Exploded 4 | . 1 4 Melee . | . . . Uniques/NPCs Destroyed . | . . . Combat | -11 -10 -9 -------- Run | Yrd Mat Mat Hostile Shots Fired 48 | . 40 8 Missed 12 | . 10 2 Hits 36 | . 30 6 Melee 1 | . . 1 Projectile 35 | . 30 5 Damage Taken 546 | . 351 195 Core 133 | . 108 25 Absorbed by Shields . | . . . Core Remaining (%) 78 | 100 56 . Volleys Fired 48 | 6 37 5 Largest 4 | 2 2 4 Hottest 132 | 40 66 132 Shots Fired 103 | 12 74 17 Gun 80 | 12 68 . Cannon . | . . . Launcher 23 | . 6 17 Special . | . . . Kinetic 80 | 12 68 . Thermal . | . . . Explosive 23 | . 6 17 Electromagnetic . | . . . Robot Hit Streak 12 | 7 12 2 Robot Miss Streak 3 | 1 3 1 Penetration Max . | . . . Secondary Targets 1 | . 1 . Max Gunslinging Chain 1 | . 1 . Shots Hit Robots 53 | 8 43 2 Core Hits 36 | 4 21 11 Critical Kills . | . . . Critical Parts Destroyed . | . . . Critical Strikes . | . . . Melee Attacks . | . . . Impact . | . . . Slashing . | . . . Piercing . | . . . Sneak Attacks . | . . . Combat Hostiles . | . . . Follow-up Attacks . | . . . Damage Inflicted 1573 | 87 689 797 Guns 525 | 87 438 . Cannons . | . . . Explosions 1048 | . 251 797 Melee . | . . . Ramming . | . . . Kinetic 525 | 87 438 . Thermal . | . . . Explosive 1048 | . 251 797 Electromagnetic . | . . . Impact . | . . . Slashing . | . . . Piercing . | . . . Highest Corruption . | . . . Average Corruption . | . . . Corruption Purged . | . . . Corruption Blocked . | . . . Overload Shots . | . . . Overflow Damage 122 | . 5 117 Projectiles . | . . . Explosions 122 | . 5 117 Melee . | . . . Knockbacks . | . . . Impact . | . . . Kinetic . | . . . Secondary . | . . . Self-Inflicted Damage 115 | . . 115 Shots 3 | . . 3 Rammed . | . . . Targets Rammed . | . . . Kicked . | . . . Crushed . | . . . Highest Temperature 63 | . 42 63 Average Temperature 20 | . 13 31 Received Heat Transfer 162 | . 138 24 Siege Activations . | . . . Martial Activations . | . . . Shielding Activations . | . . . Robots Disrupted . | . . . Combat Hostiles . | . . . Robots Corrupted . | . . . Combat Hostiles . | . . . Parts Fried . | . . . Impact Corruptions . | . . . Robots Melted . | . . . Combat Hostiles . | . . . Parts Melted . | . . . Heat Transferred . | . . . Parts Sabotaged . | . . . Parts Stolen . | . . . Parts Stripped . | . . . Power Chain Reactions . | . . . Alert | -11 -10 -9 ------- Run | Yrd Mat Mat Maximum Alert Level 1 | . . 1 Low Security (%) 89 | 100 100 61 Level 1 10 | . . 38 Level 2 . | . . . Level 3 . | . . . Level 4 . | . . . Level 5 . | . . . High Security . | . . . Max Security . | . . . Peak Influence 281 | 10 138 281 Initial 44 | . . 44 Average 84 | 1 63 168 Influence Increases 711 | 15 344 352 Destroy 0b10 Robot/C 360 | . 220 140 Destroy 0b10 Robot/NC 40 | 15 5 20 Destroy Leader 62 | . 42 20 Successful Hack 26 | . 10 16 Select Force Hacks 60 | . 30 30 Disable Machine 45 | . . 45 Destroy Structure 88 | . 22 66 Lose Combat Pursuer 30 | . 15 15 Influence Decreases 465 | 15 238 212 Entered New Map 62 | . . 62 Time Decay 373 | 15 228 130 Lost Part 20 | . . 20 Purge Threat 10 | . 10 . Squads Dispatched 3 | . 2 1 Investigation 2 | . 1 1 Extermination . | . . . Reinforcement 1 | . 1 . Assault . | . . . Garrison . | . . . Intercept . | . . . Searches Triggered . | . . . Construction Impeded . | . . . Haulers Reinforced . | . . . Active Scanning Responses . | . . . Cargo Convoy Interrupts . | . . . Stealth | -11 -10 -9 --------- Run | Yrd Mat Mat Distress Signals 6 | . 3 3 Communications Jammed . | . . . Distress Signals . | . . . Times Spotted 32 | . 22 10 Peak Tracking Total 6 | . 6 5 Tactical Retreats 2 | . 1 1 Traps | -11 -10 -9 ------- Run | Yrd Mat Mat Traps Triggered 6 | . 1 5 Indirectly . | . . . Trap Hack Attempts . | . . . Triggered . | . . . Disarmed . | . . . Reprogrammed . | . . . Reused . | . . . Traps Extracted . | . . . Installed . | . . . Triggered . | . . . Machines | -11 -10 -9 ---------- Run | Yrd Mat Mat Machines Disabled 3 | . . 3 Max in Single Turn 2 | . . 2 Machines Repaired . | . . . Machines Dismantled . | . . . Machines Sabotaged . | . . . Overloaded Fab Kills . | . . . Hacking | -11 -10 -9 --------- Run | Yrd Mat Mat Machines Accessed 7 | . 5 2 Terminals 5 | . 4 1 Fabricators . | . . . Repair Stations . | . . . Recycling Units 2 | . 1 1 Scanalyzers . | . . . Garrison Access . | . . . Total Hacks 17 | . 11 6 Successful 11 | . 7 4 Failed 5 | . 3 2 Catastrophic . | . . . Database Lockouts 1 | . 1 . Manual 17 | . 11 6 Terminals 15 | . 10 5 Fabricators . | . . . Repair Stations . | . . . Recycling Units 2 | . 1 1 Scanalyzers . | . . . Garrison Access . | . . . Terminal Hacks 4 | . 2 2 Robot Analysis 1 | . 1 . Terminal Index 1 | . . 1 Unreport Threat 1 | . 1 . Hauler Manifests 1 | . . 1 Fabricator Hacks . | . . . Repair Station Hacks . | . . . Recycling Unit Hacks . | . . . Scanalyzer . | . . . Garrison Access Hacks . | . . . Unauthorized Hacks 7 | . 5 2 Terminals 5 | . 4 1 Botnet 5 | . 4 1 Fabricators . | . . . Repair Stations . | . . . Recycling Units 2 | . 1 1 Tunnel 2 | . 1 1 Scanalyzers . | . . . Garrison Access . | . . . Data Cores Recovered 1 | . . 1 Used . | . . . Hacking Detections 4 | . 3 1 Full Trace Events . | . . . Feedback Events . | . . . Feedback Blocked . | . . . Robot Schematics Acquired . | . . . Robots Built . | . . . Authchips . | . . . Time . | . . . Total Robot Build Rating . | . . . Part Schematics Acquired . | . . . Parts Built . | . . . Authchips . | . . . Time . | . . . Total Part Build Rating . | . . . Part Studies Acquired . | . . . Parts Repaired . | . . . Time . | . . . Parts Recycled . | . . . Recycled Matter . | . . . Retrieved Matter . | . . . Retrieved Components . | . . . Parts Scanalyzed . | . . . Part Schematics Acquired . | . . . Parts Damaged . | . . . Bothacking | -11 -10 -9 ------------ Run | Yrd Mat Mat Used RIF Installer . | . . . Robots Hacked . | . . . Non-combat . | . . . Combat . | . . . Robot Hacks Applied . | . . . Relay Couplers Released . | . . . Fabnet Peak Effective % . | . . . Robots Rewired . | . . . Allies Hacked . | . . . Hacks Repelled . | . . . Allies | -11 -10 -9 -------- Run | Yrd Mat Mat Total Allies . | . . . Largest Group . | . . . Highest-Rated Group . | . . . Highest-Rated Ally . | . . . Total Orders . | . . . Ally Attacks . | . . . Total Damage . | . . . Kills . | . . . Allies Corrupted . | . . . Allies Melted . | . . . Intel | -11 -10 -9 ------- Run | Yrd Mat Mat Active Infowar (turns) 864 | 42 604 218 Seismic 864 | 42 604 218 Robot Analysis Total 1 | . 1 . Derelict Logs Recovered . | . . . Drone Launches . | . . . Drone Recoveries . | . . . Exploration | -11 -10 -9 ------------- Run | Yrd Mat Mat Turns Passed 997 | 121 604 272 Spaces Moved 720 | 89 447 184 Core 11 | 1 . 10 Treads . | . . . Legs . | . . . Wheels 709 | 88 447 174 Hover . | . . . Flight . | . . . Fastest Speed 50 | 50 90 105 Average Speed 101 | 89 93 126 Slowest Speed 550 | 90 105 550 Overloaded Moves . | . . . Propulsion Burnouts . | . . . Robots Hopped . | . . . Potential Cave-ins . | . . . Cave-ins Triggered . | . . . Exploration Rate (%) 26 | 4 53 22 Regions Visited 2 Branch Regions . Pre-discovered Areas 2 | . 1 1 Known Exits Taken . | . . . Unknown Exits Taken 2 | 1 1 . Scrap Searched . | . . . Spaces Dug 65 | . . 65 Terrain Destroyed 116 | . 24 92 Melee . | . . . Projectile . | . . . AOE 116 | . 24 92 Terrain Rammed . | . . . Walls Destroyed . | . . . Machines Disabled . | . . . Actions | -11 -10 -9 --------- Run | Yrd Mat Mat Total 891 | 117 566 208 Wait 81 | 6 67 8 Move 718 | 88 446 184 Hop . | . . . Pick Up 18 | 8 9 1 Fast Attach 15 | 7 . 8 Attach 2 | . . 2 Detach . | . . . Swap 4 | 1 3 . Drop 5 | 1 4 . Fire 48 | 6 37 5 Melee . | . . . Ram . | . . . Kick . | . . . Crush . | . . . Escape Stasis . | . . . Rewire . | . . . Trap . | . . . Miscellaneous . | . . . Route ------- -11/Scrapyard -10/Materials (discovered 3 exits: *Mat x2 / [*Min]) -9/Materials History --------- Turn | Location | Event 2 | -11/Scrapyard | Met Revision 17 12 | -11/Scrapyard | Discovered new exit (range 16) 122 | -11/Scrapyard | Entered Materials 154 | -10/Materials | Central database locked down 173 | -10/Materials | Discovered new exit (range 10) 310 | -10/Materials | Build established: Mutant 453 | -10/Materials | Discovered new exit (range 8) 564 | -10/Materials | Discovered new exit (range 15) 622 | -10/Materials | Derelicts attacked the area 726 | -10/Materials | Entered another Materials area 726 | -9/Materials | Evolved 2 slots: Weapon x2 998 | -9/Materials | Self-destructed Last Messages --------------- 00941_ Wheel severed. 00941_ Rocket Launcher severed. 00942_ U-05 Engineer lays Concrete. 00942_ Acquired Rocket Launcher. 00943_ U-05 Engineer lays Concrete. 00944_ Triggered Blade Trap. 00944_ Massive razor-sharp blades shoot up from within the floor. 00944_ Seismic Detector severed. 00944_ Rocket Launcher severed. 00944_ U-05 Engineer lays Concrete. 00945_ U-05 Engineer builds a Wall. 00945_ U-05 Engineer lays Concrete. 00947_ U-05 Engineer builds a Wall. 00947_ U-05 Engineer builds a Door. 00948_ Acquired Rocket Launcher. 00958_ The unstable cave ceiling collapses. 00958_ W-16 Scout sends out distress signal. 00960_ Acquired Rocket Launcher. 00976_ Rocket Launcher destroyed. 00998_ Knocked back. Map ----- +----------------------------------------------------+ | ????????????????????????????????????? | | ????????????????????????????????????? | | ????????????????????????????????????? | | ????????????????????????????????????? | | ????????????????????????????????????? | | ????????????????????????????????????? | | ????????????????????????????????????? | | ????????????????????????????????????? | | ????????????????????????????????????? | | ?????????????????? ???????????????? | | ?????????????????# ???????????????? | | ?????????????????# #??????????????? | | ?????????????????# #??????????????? | | ?????????????????# #??????????????? | | ?????????????????# #??????????????? | | ?????????????????# #??????????????? | | ?????????????????# +??????????????? | | ?????????????????# #??????????????? | | ?????????????????# #??????????????? | | ?????????????????# #??????????????? | | ?????????????????# ##############?? | | ?????????????????# # g #?? | | ?????????????????# # """" """" !#?? | | ?????????????????# + """" """" #?? | | ?????????????????#!=]# """" """" #?? | | ?????????????????# # b @ ##? | | ?????????????????#^ =#### ### # # ## | | ?????????????????# #### # # | | ?????????????????# # # " "" | | ????????????????## # # " # | | ????????????????# ### # | | ????????????????# u | | ????????????????## [ | | ?????????????????# # | | ????????################+### """"" # | | ?????? ## """ # | | ???? #""" ## # | | ???? #""" ## ! # | | ????? ^ " #""" ########## | | ?????# "" # #????????? | | ?????# ^ ##""" #????????? | | ?????#^ #""" #????????? | | ?????# ##""" #????????? | | ?????# ## #????????? | | ?????# ## "Y" #????????? | | ?????# + """ #????????? | | ?????+ ^ ## #?#####??? | | ?????# == ########? # ###? | | ?????# == #??????## ## | | ?????# ######## # | +----------------------------------------------------+ Best States ------------- Heat Dissipation 28 Energy Generation 10 Energy Capacity 250 Matter Stores 300 Matter Capacity 300 Sight Range 16 Terrain Scan Density 10 Evasion (%) 42 Item Schematics ----------------- None Robot Schematics ------------------ None Fabricated ------------ Nothing Repaired ---------- Nothing Studied --------- None Alien Tech Used ----------------- None Achievements -------------- None Challenges ------------ None Game ------ Seed MeleeHugeStorm Manual? 0 Play Time 00:10:22 Cumulative 85.2 hours Start 2026.02.17 @ 21:09:14 End 2026.02.17 @ 21:17:16 Sessions 1 Manual Loads 0 Difficulty Rogue Special Mode None Game No. 174 Rogue 174 Adventurer 0 Explorer 0 Win Type - Total 1 Types 1/0/0/0/0/0/0/0/0/0 Lore% 49 Gallery% 38 Achievement% 38 Wizard Run 0 Options --------- Layout 0 ASCII 0 Keyboard 1 Movement Arrows Keybinds 0 Fullscreen 1 Font 18/Smallcaps Map View 76x50 Zoom Use 29% Tactical HUD 1 Map Filters NONE Filters NONE Steam 1 RUN: 0b9627bc-6f85-4669-ae69-9dfb4eb4355d